[Event "XTX Markets London Masters 2024"]
[Site "London"]
[Date "2024.11.30"]
[Round "2.21"]
[White "Salem, Ihab"]
[Black "Richardson, John R"]
[Result "0-1"]
[ECO "B11"]
[WhiteElo "2071"]
[BlackElo "2287"]
[Annotator "RC"]
[PlyCount "112"]
[EventDate "2024.11.28"]
[EventType "swiss"]
[EventCountry "ENG"]
[SourceTitle "playchess.com"]
[Source "ChessBase"]
[SourceQuality "1"]
[TimeControl "40/5400+30:1800+30"]

1. e4 {[%emt 0:00:04]} c6 {[%emt 0:00:01]} 2. Nc3 {[%emt 0:00:38]} d5 {[%emt 0:00:03]} 3. Nf3 {[%emt 0:00:39]} dxe4 {[%emt 0:00:03]} 4. Nxe4 {[%emt 0:00:08]} Nf6 {[%emt 0:00:03]} 5. Qe2 {[%emt 0:03:02]} Nxe4 {[%emt 0:00:09]} 6. Qxe4 {[%emt 0:00:10]} Nd7 {[%emt 0:00:00]} 7. Bc4 {[%emt 0:00:50]} Nf6 {[%emt 0:00:07]} 8. Qe2 {[%emt 0:00:31]} b5 {[%emt 0:03:59]} 9. Bb3 {[%emt 0:02:22]} e6 {[%emt 0:00:03]} 10. O-O {[%emt 0:04:58]} Bd6 {[%emt 0:00:40]} 11. a4 {[%emt 0:01:18]} a6 {[%emt 0:01:56]} 12. d4 {[%emt 0:01:06]} O-O {[%emt 0:08:22]} 13. Bg5 {[%emt 0:01:01]} Bb7 {[%emt 0:00:42]} 14. Ne5 {[%emt 0:01:16]} Qc7 {[%emt 0:05:49]} 15. Bxf6 {[%emt 0:15:55]} gxf6 {[%emt 0:00:09]} 16. Ng4 {[%emt 0:01:48]} Be7 {[%emt 1:16:24]} 17. Nh6+ {[%emt 0:09:11]} Kg7 {[%emt 0:00:00]} 18. Qe3 {[%emt 0:00:50]} c5 {[%emt 0:00:00]} 19. c3 {[%emt 0:04:58]} Bd6 {[%emt 0:00:00]} 20. g3 {[%emt 0:08:11]} Bf4 {[%emt 0:00:00]} 21. gxf4 {[%emt 0:00:56]} Kxh6 {[%emt 0:00:00]} 22. f5+ {[%emt 0:00:29]} Kg7 {[%emt 0:00:00]} 23. Qg3+ {[%emt 0:05:24]} Qxg3+ {[%emt 0:00:00]} 24. fxg3 {[%emt 0:00:06]} cxd4 {[%emt 0:00:00]} 25. cxd4 {[%emt 0:00:55]} Rfd8 {[%emt 0:00:00]} 26. fxe6 {[%emt 0:05:27]} fxe6 {[%emt 0:00:00]} 27. Rfc1 {[%emt 0:02:25]} Bd5 {[%emt 0:00:00]} 28. Rc7+ {[%emt 0:00:41]} Kg6 {[%emt 0:00:00]} 29. Bc2+ {[%emt 0:01:44]} f5 {[%emt 0:00:00]} 30. Rc1 {[%emt 0:03:31]} bxa4 {[%emt 0:00:00]} 31. Bxa4 {[%emt 0:00:23]} Rab8 {[%emt 0:00:00]} 32. R1c2 {[%emt 0:03:18]} Rb4 {[%emt 0:00:00]} 33. Bc6 {[%emt 0:01:38]} Rxd4 {[%emt 0:00:00]} 34. Bxd5 {[%emt 0:00:07]} R8xd5 {[%emt 0:00:00]} 35. Kf2 {[%emt 0:01:44]} Rd2+ {[%emt 0:00:00]} 36. Ke1 {[%emt 0:02:21]} Rxc2 {[%emt 0:00:00]} 37. Rxc2 {[%emt 0:00:08]} Kf6 {[%emt 0:00:00]} 38. Ke2 {[%emt 0:01:45]} a5 {[%emt 0:00:00]} 39. Ke3 {[%emt 0:03:29]} h5 {[%emt 0:00:00]} 40. h4 {[%emt 0:01:49]} Rb5 {[%emt 0:00:00]} 41. Kf3 {[%emt 0:33:31]} Rb3+ {[%emt 0:28:07]} 42. Kf2 {[%emt 0:00:08]} a4 {[%emt 0:00:36]} 43. Kg2 {[%emt 0:01:06]} e5 {[%emt 0:08:01]} 44. Rc6+ {[%emt 0:04:14]} Kf7 {[%emt 0:01:52]} 45. Rc2 {[%emt 0:00:00]} Ke6 {[%emt 0:00:00]} 46. Rd2 {[%emt 0:00:00]} e4 {[%emt 0:00:00]} 47. Rc2 {[%emt 0:00:00]} Kd5 {[%emt 0:00:00]} 48. Rf2 {[%emt 0:00:00]} Ke5 {[%emt 0:00:00]} 49. Rc2 {[%emt 0:00:00]} f4 {[%emt 0:00:00]} 50. gxf4+ {[%emt 0:00:00]} Kxf4 {[%emt 0:00:00]} 51. Re2 {[%emt 0:00:00]} Rg3+ {[%emt 0:00:00]} 52. Kf1 {[%emt 0:00:00]} Rh3 {[%emt 0:00:00]} 53. Rc2 {[%emt 0:00:00]} Rxh4 {[%emt 0:00:00]} 54. Rc4 {[%emt 0:00:00]} Kf3 {[%emt 0:00:00]} 55. Ke1 {[%emt 0:00:00]} Rh1+ {[%emt 0:00:00]} 56. Kd2 {[%emt 0:00:00]} e3+ {[%emt 0:00:00]} 0-1

[Event "XTX Markets London Masters 2024"]
[Site "London"]
[Date "2024.11.30"]
[Round "2.22"]
[White "Yoon, Jacob D"]
[Black "Hanache, Kai"]
[Result "1-0"]
[ECO "D02"]
[WhiteElo "2270"]
[BlackElo "2080"]
[Annotator "RC"]
[PlyCount "77"]
[EventDate "2024.11.28"]
[EventType "swiss"]
[EventCountry "ENG"]
[SourceTitle "playchess.com"]
[Source "ChessBase"]
[SourceQuality "1"]
[TimeControl "40/5400+30:1800+30"]

1. Nf3 {[%emt 0:06:51]} Nf6 {[%emt 0:00:07]} 2. d4 {[%emt 0:00:31]} g6 {[%emt 0:00:12]} 3. Nbd2 {[%emt 0:00:05]} d5 {[%emt 0:00:39]} 4. b4 {[%emt 0:00:09]} Bg7 {[%emt 0:01:14]} 5. e3 {[%emt 0:00:08]} a5 {[%emt 0:01:37]} 6. b5 {[%emt 0:00:07]} c5 {[%emt 0:01:34]} 7. bxc6 {[%emt 0:03:21]} Nxc6 {[%emt 0:00:19]} 8. c4 {[%emt 0:00:11]} O-O {[%emt 0:01:24]} 9. Be2 {[%emt 0:00:04]} e5 {[%emt 0:03:09]} 10. Nxe5 {[%emt 0:07:53]} Nxe5 {[%emt 0:03:39]} 11. dxe5 {[%emt 0:00:45]} Ne4 {[%emt 0:00:10]} 12. Bb2 {[%emt 0:02:19]} Nxd2 {[%emt 0:07:38]} 13. Qxd2 {[%emt 0:00:14]} dxc4 {[%emt 0:00:02]} 14. Qxd8 {[%emt 0:11:25]} Rxd8 {[%emt 0:00:06]} 15. Bxc4 {[%emt 0:00:11]} a4 {[%emt 0:03:11]} 16. Bd4 {[%emt 0:01:26]} Bf5 {[%emt 0:02:18]} 17. O-O {[%emt 0:01:38]} Rac8 {[%emt 0:00:31]} 18. Rac1 {[%emt 0:02:32]} Bh6 {[%emt 0:02:38]} 19. f4 {[%emt 0:03:40]} Bf8 {[%emt 0:04:02]} 20. Bb5 {[%emt 0:14:26]} a3 {[%emt 0:01:14]} 21. Bc4 {[%emt 0:00:32]} Bb4 {[%emt 0:01:26]} 22. Bb3 {[%emt 0:00:27]} Bd3 {[%emt 0:01:05]} 23. Rfd1 {[%emt 0:03:59]} Be4 {[%emt 0:01:31]} 24. e6 {[%emt 0:02:58]} Kf8 {[%emt 0:03:05]} 25. exf7 {[%emt 0:01:20]} Be7 {[%emt 0:00:26]} 26. Be6 {[%emt 0:06:53]} Rxc1 {[%emt 0:00:55]} 27. Rxc1 {[%emt 0:00:01]} Bd5 {[%emt 0:00:08]} 28. Bxd5 {[%emt 0:11:12]} Rxd5 {[%emt 0:00:07]} 29. Kf2 {[%emt 0:01:21]} Kxf7 {[%emt 0:00:43]} 30. Kf3 {[%emt 0:00:01]} h5 {[%emt 0:03:13]} 31. g3 {[%emt 0:00:38]} Ke6 {[%emt 0:01:41]} 32. h3 {[%emt 0:02:18]} g5 {[%emt 0:00:24]} 33. Ke4 {[%emt 0:00:29]} h4 {[%emt 0:01:17]} 34. g4 {[%emt 0:00:29]} Rb5 {[%emt 0:00:38]} 35. f5+ {[%emt 0:04:58]} Kd7 {[%emt 0:00:29]} 36. Rd1 {[%emt 0:05:52]} Rb4 {[%emt 0:02:14]} 37. Kd3 {[%emt 0:00:34]} Bd6 {[%emt 0:02:18]} 38. Bf6 {[%emt 0:02:18]} Bg3 {[%emt 0:00:28]} 39. Kc3+ {[%emt 0:00:11]} 1-0

[Event "XTX Markets London Masters 2024"]
[Site "London"]
[Date "2024.11.30"]
[Round "2.23"]
[White "Tashkinova, Sofiia"]
[Black "Arakhamia-Grant, Ketevan"]
[Result "1-0"]
[ECO "B31"]
[WhiteElo "2066"]
[BlackElo "2265"]
[Annotator "RC"]
[PlyCount "65"]
[EventDate "2024.11.28"]
[EventType "swiss"]
[EventCountry "ENG"]
[SourceTitle "playchess.com"]
[Source "ChessBase"]
[SourceQuality "1"]
[TimeControl "40/5400+30:1800+30"]

1. e4 {[%emt 0:01:02]} c5 {[%emt 0:00:07]} 2. Nf3 {[%emt 0:00:12]} Nc6 {[%emt 0:00:36]} 3. Bb5 {[%emt 0:00:20]} g6 {[%emt 0:01:35]} 4. O-O {[%emt 0:02:16]} Bg7 {[%emt 0:00:04]} 5. Re1 {[%emt 0:00:19]} e5 {[%emt 0:01:18]} 6. Nc3 {[%emt 0:04:06]} Nge7 {[%emt 0:00:27]} 7. Bc4 {[%emt 0:03:28]} O-O {[%emt 0:01:29]} 8. Nd5 {[%emt 0:01:29]} d6 {[%emt 0:01:38]} 9. c3 {[%emt 0:03:53]} h6 {[%emt 0:08:08]} 10. a4 {[%emt 0:03:10]} Kh7 {[%emt 0:02:16]} 11. Rb1 {[%emt 0:03:31]} f5 {[%emt 0:04:24]} 12. d3 {[%emt 0:01:58]} Nxd5 {[%emt 0:09:04]} 13. Bxd5 {[%emt 0:02:24]} f4 {[%emt 0:01:58]} 14. Nd2 {[%emt 0:07:09]} Qf6 {[%emt 0:10:49]} 15. f3 {[%emt 0:01:31]} g5 {[%emt 0:01:11]} 16. b4 {[%emt 0:01:43]} cxb4 {[%emt 0:11:14]} 17. cxb4 {[%emt 0:00:40]} h5 {[%emt 0:00:11]} 18. b5 {[%emt 0:01:32]} Ne7 {[%emt 0:01:39]} 19. Bb2 {[%emt 0:03:19]} g4 {[%emt 0:00:51]} 20. Rc1 {[%emt 0:02:11]} Nxd5 {[%emt 0:30:46]} 21. exd5 {[%emt 0:00:24]} Qg6 {[%emt 0:00:09]} 22. d4 {[%emt 0:11:35]} Bf5 {[%emt 0:02:50]} 23. dxe5 {[%emt 0:03:41]} dxe5 {[%emt 0:00:16]} 24. Bxe5 {[%emt 0:02:03]} Bxe5 {[%emt 0:00:15]} 25. Rxe5 {[%emt 0:00:09]} Rf7 {[%emt 0:00:11]} 26. Rc4 {[%emt 0:09:16]} Bd3 {[%emt 0:03:41]} 27. Rd4 {[%emt 0:03:35]} Rc8 {[%emt 0:04:26]} 28. d6 {[%emt 0:04:00]} Rd7 {[%emt 0:01:51]} 29. Rdd5 {[%emt 0:07:41]} Rg7 {[%emt 0:00:48]} 30. Rxh5+ {[%emt 0:02:16]} Kg8 {[%emt 0:00:04]} 31. Rhg5 {[%emt 0:03:39]} Qh7 {[%emt 0:01:09]} 32. Rxg7+ {[%emt 0:00:19]} Kxg7 {[%emt 0:00:10]} 33. fxg4 {[%emt 0:02:24]} 1-0

[Event "XTX Markets London Masters 2024"]
[Site "London"]
[Date "2024.11.30"]
[Round "2.24"]
[White "Carlin, John D"]
[Black "Dasgupta, Avyukt"]
[Result "1/2-1/2"]
[ECO "C10"]
[WhiteElo "2235"]
[BlackElo "2034"]
[Annotator "RC"]
[PlyCount "104"]
[EventDate "2024.11.28"]
[EventType "swiss"]
[EventCountry "ENG"]
[SourceTitle "playchess.com"]
[Source "ChessBase"]
[SourceQuality "1"]
[TimeControl "40/5400+30:1800+30"]

1. e4 {[%emt 0:01:16]} e6 {[%emt 0:00:08]} 2. d4 {[%emt 0:00:16]} d5 {[%emt 0:00:05]} 3. Nc3 {[%emt 0:00:09]} dxe4 {[%emt 0:00:04]} 4. Nxe4 {[%emt 0:00:13]} Bd7 {[%emt 0:00:02]} 5. Nf3 {[%emt 0:02:10]} Bc6 {[%emt 0:00:01]} 6. Bd3 {[%emt 0:02:05]} Nd7 {[%emt 0:00:00]} 7. O-O {[%emt 0:01:38]} Ngf6 {[%emt 0:00:01]} 8. Qe2 {[%emt 0:04:07]} Nxe4 {[%emt 0:00:05]} 9. Bxe4 {[%emt 0:00:10]} Bxe4 {[%emt 0:00:01]} 10. Qxe4 {[%emt 0:00:09]} c6 {[%emt 0:00:01]} 11. b3 {[%emt 0:03:11]} Nf6 {[%emt 0:01:17]} 12. Qe2 {[%emt 0:00:16]} g6 {[%emt 0:03:03]} 13. Re1 {[%emt 0:07:13]} Bg7 {[%emt 0:02:21]} 14. Ba3 {[%emt 0:00:58]} Qa5 {[%emt 0:04:22]} 15. Bc5 {[%emt 0:03:07]} b6 {[%emt 0:12:12]} 16. Bd6 {[%emt 0:02:01]} Rd8 {[%emt 0:01:47]} 17. Qe5 {[%emt 0:11:57]} Qd5 {[%emt 0:02:33]} 18. Ba3 {[%emt 0:01:50]} Nh5 {[%emt 0:07:46]} 19. c4 {[%emt 0:18:21]} Qxe5 {[%emt 0:07:17]} 20. dxe5 {[%emt 0:00:54]} c5 {[%emt 0:01:30]} 21. Bc1 {[%emt 0:02:45]} f5 {[%emt 0:05:47]} 22. g3 {[%emt 0:10:55]} O-O {[%emt 0:05:44]} 23. Kg2 {[%emt 0:00:28]} h6 {[%emt 0:04:34]} 24. h4 {[%emt 0:02:15]} Rd7 {[%emt 0:08:57]} 25. Bb2 {[%emt 0:03:29]} Rfd8 {[%emt 0:00:55]} 26. Bc3 {[%emt 0:21:37]} Bf8 {[%emt 0:01:32]} 27. Rac1 {[%emt 0:00:00]} Ng7 {[%emt 0:04:38]} 28. Re2 {[%emt 0:00:00]} Be7 {[%emt 0:02:52]} 29. Bd2 {[%emt 0:00:00]} Kh7 {[%emt 0:00:12]} 30. Rc2 {[%emt 0:00:00]} Ne8 {[%emt 0:00:42]} 31. Rb2 {[%emt 0:00:00]} Nc7 {[%emt 0:01:36]} 32. Be3 {[%emt 0:00:00]} a5 {[%emt 0:03:51]} 33. Red2 {[%emt 0:00:00]} Na6 {[%emt 0:00:43]} 34. a3 {[%emt 0:04:00]} Nb8 {[%emt 0:08:48]} 35. Rxd7 {[%emt 0:00:00]} Rxd7 {[%emt 0:00:11]} 36. Rd2 {[%emt 0:00:00]} Rxd2 {[%emt 0:01:04]} 37. Bxd2 {[%emt 0:00:00]} Nc6 {[%emt 0:00:19]} 38. Kf1 {[%emt 0:00:00]} Kg7 {[%emt 0:02:37]} 39. Ke2 {[%emt 0:00:00]} Bf8 {[%emt 0:02:51]} 40. Kd3 {[%emt 0:00:00]} Kf7 {[%emt 0:01:01]} 41. Bc3 {[%emt 0:29:20]} Bg7 {[%emt 0:31:54]} 42. Ke3 {[%emt 0:03:56]} h5 {[%emt 0:00:00]} 43. Kf4 {[%emt 0:00:00]} Bh6+ {[%emt 0:00:00]} 44. Ng5+ {[%emt 0:00:00]} Ke7 {[%emt 0:00:00]} 45. Ke3 {[%emt 0:00:00]} Bxg5+ {[%emt 0:00:00]} 46. hxg5 {[%emt 0:00:00]} Kd7 {[%emt 0:00:00]} 47. a4 {[%emt 0:00:00]} Nd8 {[%emt 0:00:00]} 48. f4 {[%emt 0:00:00]} Kc6 {[%emt 0:00:00]} 49. Kd3 {[%emt 0:00:00]} Nb7 {[%emt 0:00:00]} 50. Ke3 {[%emt 0:00:00]} Nd8 {[%emt 0:00:00]} 51. Kd3 {[%emt 0:00:00]} Nb7 {[%emt 0:00:00]} 52. Ke3 {[%emt 0:00:00]} Nd8 {[%emt 0:11:06]} 1/2-1/2

[Event "XTX Markets London Masters 2024"]
[Site "London"]
[Date "2024.11.30"]
[Round "2.25"]
[White "Gallana, Marco"]
[Black "Jermy, Jaden"]
[Result "1-0"]
[ECO "E07"]
[WhiteElo "2216"]
[BlackElo "2011"]
[Annotator "RC"]
[PlyCount "89"]
[EventDate "2024.11.28"]
[EventType "swiss"]
[EventCountry "ENG"]
[SourceTitle "playchess.com"]
[Source "ChessBase"]
[SourceQuality "1"]
[TimeControl "40/5400+30:1800+30"]

1. c4 {[%emt 0:00:05]} Nf6 {[%emt 0:06:25]} 2. g3 {[%emt 0:00:22]} e6 {[%emt 0:00:09]} 3. Bg2 {[%emt 0:00:17]} d5 {[%emt 0:00:18]} 4. Nf3 {[%emt 0:00:12]} Be7 {[%emt 0:01:41]} 5. O-O {[%emt 0:00:14]} O-O {[%emt 0:00:07]} 6. b3 {[%emt 0:00:36]} Nbd7 {[%emt 0:01:16]} 7. d4 {[%emt 0:01:09]} Ne4 {[%emt 0:02:44]} 8. Nfd2 {[%emt 0:04:06]} f5 {[%emt 0:06:19]} 9. Nxe4 {[%emt 0:02:24]} dxe4 {[%emt 0:03:14]} 10. Bb2 {[%emt 0:06:59]} Bf6 {[%emt 0:16:56]} 11. Nc3 {[%emt 0:04:36]} c6 {[%emt 0:04:30]} 12. Qd2 {[%emt 0:05:46]} e5 {[%emt 0:13:06]} 13. d5 {[%emt 0:01:10]} Nb6 {[%emt 0:03:37]} 14. Rfd1 {[%emt 0:03:17]} cxd5 {[%emt 0:00:58]} 15. cxd5 {[%emt 0:01:38]} Bg5 {[%emt 0:05:45]} 16. e3 {[%emt 0:07:10]} Bd7 {[%emt 0:01:15]} 17. a4 {[%emt 0:05:38]} Be8 {[%emt 0:02:10]} 18. Qe2 {[%emt 0:05:50]} Rc8 {[%emt 0:03:02]} 19. Rac1 {[%emt 0:15:41]} Bf7 {[%emt 0:08:13]} 20. Bf1 {[%emt 0:08:11]} a6 {[%emt 0:01:16]} 21. Qd2 {[%emt 0:05:09]} Qd6 {[%emt 0:03:22]} 22. Ra1 {[%emt 0:04:19]} Nd7 {[%emt 0:02:54]} 23. Ba3 {[%emt 0:05:41]} Nc5 {[%emt 0:00:01]} 24. a5 {[%emt 0:00:14]} Qh6 {[%emt 0:01:13]} 25. Bxc5 {[%emt 0:00:18]} Rxc5 {[%emt 0:00:01]} 26. b4 {[%emt 0:00:17]} Rc7 {[%emt 0:00:32]} 27. h4 {[%emt 0:02:17]} Bxh4 {[%emt 0:03:38]} 28. gxh4 {[%emt 0:00:07]} Bh5 {[%emt 0:01:00]} 29. d6 {[%emt 0:02:37]} Bf3 {[%emt 0:04:00]} 30. Ne2 {[%emt 0:00:05]} Qxh4 {[%emt 0:00:54]} 31. Ng3 {[%emt 0:00:05]} f4 {[%emt 0:00:33]} 32. Bg2 {[%emt 0:02:31]} Rcf7 {[%emt 0:02:59]} 33. d7 {[%emt 0:01:52]} Bxd1 {[%emt 0:02:52]} 34. Rxd1 {[%emt 0:01:35]} fxg3 {[%emt 0:00:00]} 35. d8=Q {[%emt 0:03:03]} Qh2+ {[%emt 0:00:00]} 36. Kf1 {[%emt 0:00:04]} Rxd8 {[%emt 0:00:00]} 37. Qxd8+ {[%emt 0:00:44]} Rf8 {[%emt 0:00:00]} 38. Qd5+ {[%emt 0:00:22]} Kh8 {[%emt 0:00:00]} 39. Qf7 {[%emt 0:00:12]} Rg8 {[%emt 0:00:55]} 40. Qf5 {[%emt 0:02:36]} gxf2 {[%emt 0:02:00]} 41. Kxf2 {[%emt 0:01:41]} Qh4+ {[%emt 0:00:12]} 42. Ke2 {[%emt 0:04:32]} Qe7 {[%emt 0:04:57]} 43. Rd7 {[%emt 0:04:39]} Qxb4 {[%emt 0:03:24]} 44. Bxe4 {[%emt 0:00:21]} Qc4+ {[%emt 0:00:25]} 45. Kf2 {[%emt 0:01:41]} 1-0

[Event "XTX Markets London Masters 2024"]
[Site "London"]
[Date "2024.11.30"]
[Round "2.27"]
[White "Smirin, Ilia"]
[Black "Banerjee, Supratit"]
[Result "1-0"]
[ECO "B12"]
[WhiteElo "2574"]
[BlackElo "2141"]
[Annotator "TA"]
[PlyCount "71"]
[EventDate "2024.11.28"]
[EventType "swiss"]
[EventCountry "ENG"]
[SourceTitle "playchess.com"]
[Source "ChessBase"]
[SourceQuality "1"]
[TimeControl "40/5400+30:1800+30"]

{[%evp 12,71,17,4,18,19,14,18,25,13,44,48,71,39,76,72,86,89,107,97,136,119,130,124,131,108,154,150,158,154,212,207,201,197,219,212,206,201,341,331,541,543,631,640,652,630,579,356,531,436,749,288,1168,1168,1227,1204,2923,2295,2310,1313,29997,29998]} 1. e4 {[%emt 0:07:42]} c6 {[%emt 0:00:30]} 2. d4 {[%emt 0:00:11]} d5 {[%emt 0:00:09]} 3. e5 {[%emt 0:00:15]} Bf5 {[%emt 0:00:08]} 4. Nf3 {[%emt 0:00:35]} e6 {[%emt 0:00:14]} 5. Be2 {[%emt 0:00:37]} c5 {[%emt 0:00:24]} 6. O-O {[%emt 0:00:29]} Nc6 {[%emt 0:00:20]} 7. c3 {[%emt 0:00:08]} cxd4 {[%emt 0:06:23]} 8. Nxd4 {[%emt 0:00:33]} Nge7 {[%emt 0:01:09]} 9. Nxf5 {[%emt 0:00:24]} Nxf5 {[%emt 0:00:13] The position is equal.} 10. Bd3 {[%emt 0:00:03]} Nfe7 {[%emt 0:03:18]} 11. f4 {[%emt 0:03:02]} g6 {[%emt 0:00:30]} 12. Nd2 {[%emt 0:00:58]} Bg7 {[%emt 0:00:15]} 13. Nf3 {[%emt 0:00:20]} O-O {[%emt 0:00:24]} 14. Be3 {[%emt 0:02:23]} Rc8 {[%emt 0:09:07]} 15. Qe2 {[%emt 0:01:18]} b6 {[%emt 0:04:23]} 16. Kh1 {[%emt 0:03:02] White is much more active.} Qd7 {[%emt 0:08:01]} 17. Rae1 {[%emt 0:00:58]} Rfd8 {[%emt 0:03:39]} 18. Bf2 {[%emt 0:02:09]} Re8 {[%emt 0:09:00]} ({Black should try} 18... h5 19. Bh4 Qc7) 19. g4 $16 {[%emt 0:01:40]} Rf8 {[%emt 0:06:55][%cal Be8f8,Bf8f6,Bf6f4][%mdl 32]} 20. h4 {[%emt 0:04:27]} f6 {[%emt 0:05:06]} (20... d4 $16 {is a better defense.}) 21. exf6 $18 {[%emt 0:00:07]} Rxf6 {[%emt 0:00:07]} 22. Ng5 {[%emt 0:01:53][%cal Rg5e6]} Rxf4 {[%emt 0:07:50]} 23. Nxe6 {[%emt 0:00:38]} Rf7 {[%emt 0:02:04]} 24. Bb5 {[%emt 0:14:27]} Bf6 {[%emt 0:10:22]} (24... Qd6 {was necessary.} 25. Nxg7 Kxg7) 25. Bg3 {[%emt 0:02:20]} d4 $2 {[%emt 0:01:59] [#]} (25... a6) 26. cxd4 {[%emt 0:03:57]} Qd5+ {[%emt 0:00:58]} 27. Kh2 {[%emt 0:00:06]} Nxd4 {[%emt 0:12:29]} 28. Nxd4 {[%emt 0:01:10]} Qxd4 {[%emt 0:00:22]} 29. b3 {[%emt 0:09:31]} Nd5 {[%emt 0:04:18]} (29... Qb2 $142 30. Qxb2 Bxb2) 30. Bc4 {[%emt 0:04:54] This pair of bishops is nice.} b5 {[%emt 0:01:06]} (30... Re7 $142 31. Qf3 Rxc4 32. bxc4 (32. Rxe7 Rc3 $18) 32... Ne3 33. Rxe3 (33. Qxf6 Nxg4+ 34. Kg2 Nxf6 $11) 33... Rxe3 34. Qxf6 Qxf6 35. Rxf6 Re4) 31. Rd1 $2 {[%emt 0:01:02] [#]} (31. Qe6 Rd8 32. Rd1 (32. Bxb5 Qb6 $18) (32. Rxf6 Qxf6 33. Bxd5 Qxe6 $18) 32... Qb2+ 33. Rf2 Qxf2+ 34. Bxf2 bxc4 35. Rxd5) 31... Rxc4 {[%emt 0:01:53]} (31... Qe3) 32. Rxd4 {[%emt 0:05:13]} Rxd4 {[%emt 0:00:20]} 33. g5 {[%emt 0:00:21]} Re7 {[%emt 0:01:17]} 34. Qxb5 {[%emt 0:00:05]} Rd2+ {[%emt 0:00:36]} 35. Kh3 {[%emt 0:00:50]} Bg7 {[%emt 0:01:30]} 36. Qb8+ {[%emt 0:00:11] White took control after the opening.   Weighted Error Value: White=0.52/Black=0.87.  Mistake:       	White=1     	Black=6      Inaccurate:     	White=1     	Black=3      OK:         	White=14    	Black=5} 1-0

[Event "XTX Markets London Masters 2024"]
[Site "London"]
[Date "2024.11.30"]
[Round "2.28"]
[White "Radovanovic, Jovica"]
[Black "Smith, Andrew Philip"]
[Result "1-0"]
[ECO "A56"]
[WhiteElo "2248"]
[BlackElo "2136"]
[Annotator "RC"]
[PlyCount "95"]
[EventDate "2024.11.28"]
[EventType "swiss"]
[EventCountry "ENG"]
[SourceTitle "playchess.com"]
[Source "ChessBase"]
[SourceQuality "1"]
[TimeControl "40/5400+30:1800+30"]

1. d4 {[%emt 0:00:03]} Nf6 {[%emt 0:08:55]} 2. c4 {[%emt 0:00:37]} c5 {[%emt 0:00:41]} 3. d5 {[%emt 0:00:40]} e5 {[%emt 0:00:47]} 4. Nc3 {[%emt 0:00:17]} d6 {[%emt 0:00:04]} 5. e4 {[%emt 0:00:07]} Be7 {[%emt 0:00:05]} 6. Nf3 {[%emt 0:01:12]} Nbd7 {[%emt 0:00:08]} 7. g3 {[%emt 0:01:52]} Nb6 {[%emt 0:05:56]} 8. h3 {[%emt 0:05:11]} Rb8 {[%emt 0:08:04]} 9. Be3 {[%emt 0:00:38]} Bd7 {[%emt 0:00:29]} 10. g4 {[%emt 0:13:36]} g6 {[%emt 0:11:03]} 11. Rg1 {[%emt 0:04:31]} Na8 {[%emt 0:07:51]} 12. Nd2 {[%emt 0:07:55]} Nc7 {[%emt 0:01:29]} 13. Qc2 {[%emt 0:10:11]} b5 {[%emt 0:02:43]} 14. cxb5 {[%emt 0:06:41]} Nxb5 {[%emt 0:00:42]} 15. Nxb5 {[%emt 0:01:00]} Bxb5 {[%emt 0:00:07]} 16. Bxb5+ {[%emt 0:12:46]} Rxb5 {[%emt 0:00:13]} 17. Nc4 {[%emt 0:00:26]} Nd7 {[%emt 0:06:49]} 18. Bd2 {[%emt 0:08:40]} Nb8 {[%emt 0:21:29]} 19. Rg3 {[%emt 0:05:33]} O-O {[%emt 0:02:24]} 20. Rb3 {[%emt 0:07:06]} a6 {[%emt 0:02:38]} 21. a4 {[%emt 0:03:16]} Rxb3 {[%emt 0:00:21]} 22. Qxb3 {[%emt 0:00:00]} Bh4 {[%emt 0:07:07]} 23. Qf3 {[%emt 0:02:58]} Qe7 {[%emt 0:05:10]} 24. Ke2 {[%emt 0:03:28]} Nd7 {[%emt 0:01:35]} 25. Rg1 {[%emt 0:00:16]} Rb8 {[%emt 0:02:12]} 26. b3 {[%emt 0:02:18]} f6 {[%emt 0:03:14]} 27. Kd1 {[%emt 0:01:27]} Bg5 {[%emt 0:00:07]} 28. Ba5 {[%emt 0:00:25]} Nf8 {[%emt 0:00:30]} 29. Kc2 {[%emt 0:00:08]} Kg7 {[%emt 0:00:10]} 30. Rh1 {[%emt 0:00:16]} Bh4 {[%emt 0:00:21]} 31. Rf1 {[%emt 0:00:50]} Bg5 {[%emt 0:00:15]} 32. Qd3 {[%emt 0:00:27]} Nd7 {[%emt 0:00:38]} 33. Bc7 {[%emt 0:00:27]} Rb4 {[%emt 0:00:07]} 34. Ba5 {[%emt 0:00:41]} Rb7 {[%emt 0:00:13]} 35. f3 {[%emt 0:00:30]} Nf8 {[%emt 0:00:29]} 36. Be1 {[%emt 0:00:17]} Nd7 {[%emt 0:00:47]} 37. Na5 {[%emt 0:01:02]} c4 {[%emt 0:01:04]} 38. Qxc4 {[%emt 0:00:50]} Nb6 {[%emt 0:01:25]} 39. Qxa6 {[%emt 0:00:21]} Qc7+ {[%emt 0:01:00]} 40. Nc6 {[%emt 0:00:09]} Nd7 {[%emt 0:00:30]} 41. Bf2 {[%emt 0:30:46]} Nc5 {[%emt 0:10:57]} 42. Qa5 {[%emt 0:00:00]} Rb6 {[%emt 0:00:55]} 43. b4 {[%emt 0:00:00]} Qb7 {[%emt 0:03:16]} 44. Bxc5 {[%emt 0:00:00]} dxc5 {[%emt 0:00:11]} 45. b5 {[%emt 0:00:00]} Qc7 {[%emt 0:00:20]} 46. Qc3 {[%emt 0:00:00]} c4 {[%emt 0:01:15]} 47. Rb1 {[%emt 0:00:00]} Qd6 {[%emt 0:00:27]} 48. Qb4 {[%emt 0:00:00]} 1-0